bitfinex-derivatives/quotes_SOLF0:USTF0_20250413
["timestamp","ask_amount","ask_price","bid_price","bid_amount"]
[1744539380822,9.77e-06,130.74,130.73,7.6514]
[1744539381117,9.77e-06,130.74,130.72,0.05403753]
[1744539381716,9.77e-06,130.74,130.73,7.6514]
[1744539382220,9.77e-06,130.74,130.72,7.70573753]
[1744539382819,9.77e-06,130.74,130.73,7.6514]
[1744539383019,9.77e-06,130.74,130.72,0.05403753]
[1744539383320,9.77e-06,130.74,130.72,7.70583753]
[1744539383820,9.77e-06,130.74,130.72,0.05403753]
[1744539384016,28.60000977,130.74,130.72,0.05403753]
[1744539384218,7.6514,130.73,130.72,0.05403753]
[1744539384419,28.60000977,130.74,130.69,7.6534]
[1744539384621,2.1035,130.73,130.69,7.6534]
[1744539384817,7.6522,130.72,130.66,28.6]
[1744539385117,2.1035,130.73,130.56,220.0]
[1744539385317,7.6533,130.7,130.61,28.6]
[1744539385523,0.05372005,130.69,130.61,28.6]
[1744539385727,28.6,130.71,130.68,7.6541]
[1744539385919,36.2529,130.71,130.68,7.6541]
[1744539386217,36.30440623,130.71,130.68,7.6541]
[1744539386422,36.30420623,130.71,130.68,7.6541]
[1744539386722,28.65150623,130.71,130.65,28.6]
[1744539386925,28.6,130.71,130.65,28.6]
[1744539387120,0.04865944,130.69,130.65,28.6]
[1744539387725,0.04865944,130.69,130.68,7.6544]
[1744539388127,0.04865944,130.69,130.65,28.6]
[1744539388323,0.04865944,130.69,130.67,7.6546]
[1744539389627,0.04865944,130.69,130.68,7.6544]
[1744539390028,0.04865944,130.69,130.65,28.6]
[1744539390225,7.70245944,130.69,130.66,7.6551]
[1744539390831,7.70245944,130.69,130.67,7.655]
[1744539391329,0.04865944,130.69,130.67,7.655]
[1744539393330,7.70275944,130.69,130.62,28.6]
[1744539393531,0.04865944,130.69,130.62,28.6]
[1744539393831,0.04865944,130.69,130.67,7.6546]
[1744539394333,7.70255944,130.69,130.67,7.6546]
[1744539395433,0.04865944,130.69,130.67,7.6546]
[1744539396828,7.70255944,130.69,130.67,7.6546]
[1744539397833,0.04865944,130.69,130.67,7.6546]
[1744539398135,0.04865944,130.69,130.68,7.6544]
[1744539398328,0.04865944,130.69,130.62,28.62]
[1744539398834,0.04865944,130.69,130.68,7.6544]
[1744539402131,0.04865944,130.69,130.67,7.6547]
[1744539402731,7.70265944,130.69,130.67,7.6547]
[1744539403134,0.04865944,130.69,130.67,7.6547]
[1744539404838,7.70245944,130.69,130.67,7.6547]
[1744539406339,0.04865944,130.69,130.67,7.6547]
[1744539406636,0.04865944,130.69,130.68,7.6544]
[1744539411544,28.62,130.74,130.72,7.6519]
[1744539412136,28.62,130.74,130.73,7.6514]
[1744539414755,28.62,130.74,130.72,7.70182192]
[1744539415742,36.2709,130.74,130.72,7.70182192]
[1744539418347,7.6514,130.73,130.72,0.05002192]
[1744539418548,28.62,130.74,130.65,28.6]
[1744539419148,7.6523,130.72,130.65,28.6]
[1744539419549,0.05524401,130.7,130.65,28.6]
[1744539421646,7.70874401,130.7,130.65,28.6]
[1744539422049,7.70874401,130.7,130.67,7.6547]
[1744539422348,7.6538,130.69,130.67,7.6547]
[1744539422649,7.6548,130.68,130.62,28.6]
[1744539422945,0.05057194,130.66,130.62,28.6]
[1744539423144,0.05057194,130.66,130.65,7.6558]
[1744539423345,0.05057194,130.66,130.62,28.6]
[1744539423545,0.05057194,130.66,130.64,7.6566]
[1744539423755,0.05057194,130.66,130.62,28.6]
[1744539424049,0.05057194,130.66,130.65,7.6561]
[1744539424447,0.05057194,130.66,130.62,28.6]
[1744539424652,0.05057194,130.66,130.64,7.6566]
[1744539424852,0.05057194,130.66,130.62,28.6]
[1744539425552,0.05057194,130.66,130.65,7.6561]
[1744539425746,0.05057194,130.66,130.62,28.6]
[1744539425942,0.05057194,130.66,130.59,634.44]
[1744539426452,0.05057194,130.66,130.59,28.6]
[1744539427049,28.6,130.65,130.59,28.6]
[1744539427254,28.6,130.65,130.62,7.6578]
[1744539427551,0.04877419,130.63,130.62,7.6578]
[1744539428148,0.04877419,130.63,130.61,7.6583]
[1744539428751,0.04877419,130.63,130.6,7.6587]
[1744539428952,28.6,130.62,130.6,7.6587]
[1744539430356,28.6,130.62,130.61,7.6585]
[1744539430947,0.0509567,130.63,130.62,7.6579]
[1744539431153,28.6,130.69,130.6,28.6]
[1744539431354,0.05566642,130.64,130.6,28.6]
[1744539431551,0.05566642,130.64,130.63,7.6573]
[1744539431855,28.6,130.69,130.6,28.6]
[1744539432045,2.0105,130.7,130.61,0.4293]
[1744539432251,71.85025367,130.72,130.61,358.4293]
[1744539432453,71.85025367,130.72,130.71,7.6526]
[1744539433057,0.05379753,130.73,130.72,7.652]
[1744539433255,17.50933013,130.74,130.7,0.05566642]
[1744539433458,17.56082701,130.74,130.7,0.05566642]
[1744539433754,17.56082701,130.74,130.73,7.6514]
[1744539435754,17.56082701,130.74,130.62,15.3155]
[1744539435755,7.69149688,130.74,130.58,15.3205]
[1744539435953,32.7934,130.73,130.58,43.9205]
[1744539436154,28.6,130.72,130.58,43.9205]
[1744539436352,7.6542,130.69,130.65,7.6559]
[1744539436554,28.6,130.68,130.65,7.6559]
[1744539436959,36.30372837,130.68,130.64,7.6565]
[1744539437158,36.2544,130.68,130.64,7.6565]
[1744539437353,0.05254749,130.67,130.64,7.6565]
[1744539437554,7.70754749,130.67,130.63,7.6569]
[1744539437754,28.6,130.68,130.58,28.6]
[1744539437956,2.21541694,130.66,130.58,28.6]
[1744539438257,0.05488069,130.63,130.61,7.6581]
[1744539438661,0.05488069,130.63,130.6,7.6588]
[1744539438957,0.05488069,130.63,130.58,28.6]
[1744539439358,7.71218069,130.63,130.6,7.6587]
[1744539441156,0.05488069,130.63,130.61,7.6585]
[1744539441351,0.05488069,130.63,130.58,28.6]
[1744539441659,0.05488069,130.63,130.62,7.6579]
[1744539445264,0.05488069,130.63,130.58,28.6]
[1744539446462,7.71248069,130.63,130.61,7.6584]
[1744539446764,0.05488069,130.63,130.61,7.6584]
[1744539446963,0.05488069,130.63,130.58,28.6]
[1744539447662,0.05488069,130.63,130.55,386.6]
[1744539447864,28.6,130.65,130.55,28.6]
[1744539448063,36.2562,130.65,130.62,7.6576]
[1744539448563,7.6568,130.64,130.61,7.6582]
[1744539448764,7.6568,130.64,130.58,28.6]
[1744539448958,0.05798105,130.64,130.58,28.6]
[1744539449264,0.05798105,130.64,130.62,7.6578]
[1744539450762,0.05798105,130.64,130.63,7.6573]
[1744539458560,0.05798105,130.64,130.61,28.6]
[1744539458766,0.05798105,130.64,130.62,7.6578]
[1744539458956,0.05798105,130.64,130.61,28.6]
[1744539459164,0.05798105,130.64,130.62,7.6579]
[1744539459665,0.05798105,130.64,130.61,28.6]
[1744539460772,0.05798105,130.64,130.62,7.6573]
[1744539460961,0.05798105,130.64,130.61,28.6]
[1744539461368,0.05798105,130.64,130.62,7.6573]
[1744539461869,0.05798105,130.64,130.63,7.6573]
[1744539463370,7.71478105,130.64,130.58,28.6]
[1744539463574,7.6568,130.64,130.58,28.6]
[1744539463869,28.6,130.65,130.58,28.6]
[1744539464568,28.6,130.65,130.63,7.657]
[1744539464772,28.65134712,130.65,130.63,7.657]
[1744539464971,0.05134712,130.65,130.58,28.6]
[1744539465176,0.05134712,130.65,130.64,7.6567]
[1744539471176,2.0556,130.71,130.64,28.6]
[1744539471879,30.6787,130.72,130.64,28.6]
[1744539472078,28.6,130.72,130.64,28.6]
[1744539472278,28.6,130.72,130.71,7.6526]
[1744539472577,2.09060957,130.73,130.71,7.6526]
[1744539472874,9.74210957,130.73,130.71,7.6526]
[1744539473373,2.09060957,130.73,130.71,7.6526]
[1744539473577,9.74210957,130.73,130.71,7.6526]
[1744539474372,2.09060957,130.73,130.71,7.6526]
[1744539475676,0.05210957,130.73,130.72,7.652]
[1744539475879,0.05210957,130.73,130.7,0.05134712]
[1744539476277,0.05210957,130.73,130.72,7.652]
[1744539480989,0.05210957,130.73,130.71,7.6524]
[1744539481187,0.05210957,130.73,130.7,0.05134712]
[1744539481988,0.05210957,130.73,130.72,7.652]
[1744539489989,0.05210957,130.73,130.71,7.6524]
[1744539490190,7.70380957,130.73,130.7,0.05134712]
[1744539490390,11.95200957,130.73,130.7,0.05134712]
[1744539490690,11.95200957,130.73,130.7,7.70424712]
[1744539491691,11.95200957,130.73,130.71,7.6526]
[1744539491994,0.05210957,130.73,130.7,0.05134712]
[1744539492385,0.05210957,130.73,130.72,7.652]
[1744539493092,0.05210957,130.73,130.71,7.6523]
[1744539494591,7.70360957,130.73,130.71,7.6523]
[1744539495093,7.70360957,130.73,130.7,7.70424712]
[1744539495293,7.70360957,130.73,130.7,0.05134712]
[1744539496492,7.70360957,130.73,130.71,7.6525]
[1744539496988,0.05210957,130.73,130.71,7.6525]
[1744539497195,0.05210957,130.73,130.7,0.05134712]
[1744539497590,0.05210957,130.73,130.72,7.652]
[1744539498295,0.05210957,130.73,130.7,0.05134712]
[1744539498495,28.58,130.72,130.64,358.0]
[1744539498794,28.58,130.72,130.65,28.58]
[1744539499095,6.0582,130.74,130.65,28.58]
[1744539499596,0.0586146,130.71,130.65,28.58]
[1744539499795,0.0586146,130.71,130.66,0.4226]
[1744539500099,0.0586146,130.71,130.7,7.6532]
[1744539507006,30.6894,130.78,130.74,7.6505]
[1744539508005,30.6894,130.78,130.73,7.6513]
[1744539508199,30.6894,130.78,130.69,28.58]
[1744539508504,7.6506,130.75,130.69,28.58]
[1744539508702,30.6894,130.78,130.69,28.58]
[1744539509002,7.6501,130.76,130.69,28.58]
[1744539509405,7.6501,130.76,130.73,7.6513]
[1744539509605,0.05251179,130.74,130.73,7.6513]
[1744539510705,0.05251179,130.74,130.71,0.05222017]
[1744539511106,2.11331179,130.74,130.71,0.05222017]
[1744539511306,7.6514,130.73,130.71,0.05222017]
[1744539511500,4.19521179,130.74,130.71,0.05222017]
[1744539511906,4.19521179,130.74,130.71,7.70432017]
[1744539512409,2.11331179,130.74,130.73,7.6514]
[1744539512708,0.05251179,130.74,130.71,0.05222017]
[1744539513503,0.05251179,130.74,130.73,7.6514]
[1744539519711,0.05251179,130.74,130.71,0.05222017]
[1744539520119,2.12881179,130.74,130.71,0.05222017]
[1744539520518,2.0962,130.73,130.66,28.56]
[1744539520917,7.6531,130.71,130.68,7.654]
[1744539521619,7.71191065,130.71,130.68,7.654]
[1744539522222,7.71191065,130.71,130.69,7.6537]
[1744539522417,7.71191065,130.71,130.66,28.56]
[1744539524125,0.05881065,130.71,130.61,1.33180253]
[1744539524315,2.0962,130.73,130.6,28.56]
[1744539524518,0.04872816,130.67,130.6,28.56]
[1744539524718,0.04872816,130.67,130.61,3.15862634]
[1744539524918,0.04872816,130.67,130.62,3.15862634]
[1744539525122,0.04872816,130.67,130.64,7.6564]
[1744539525418,0.04872816,130.67,130.6,28.56]
[1744539525624,7.70402816,130.67,130.63,7.6569]
[1744539526027,0.04872816,130.67,130.6,28.56]
[1744539526228,0.04872816,130.67,130.61,3.15900362]
[1744539526425,0.04872816,130.67,130.62,3.15900362]
[1744539526623,0.04872816,130.67,130.63,3.15900362]
[1744539526824,0.04872816,130.67,130.66,7.6555]
[1744539527427,0.04872816,130.67,130.64,7.6566]
[1744539527628,0.04872816,130.67,130.63,28.58]
[1744539527818,0.04872816,130.67,130.66,7.6555]
[1744539528230,0.04872816,130.67,130.63,28.58]
[1744539529131,0.04872816,130.67,130.65,7.6558]
[1744539530830,0.04872816,130.67,130.66,7.6555]
[1744539531929,32.7299,130.72,130.69,7.6532]
[1744539532125,32.7299,130.72,130.66,3.14868599]
[1744539532126,30.5977,130.72,130.66,28.58]
[1744539532330,28.58,130.72,130.7,7.6528]
[1744539532531,7.6519,130.73,130.66,28.58]
[1744539532831,40.3679,130.75,130.67,3.14768298]
[1744539533032,0.05783541,130.71,130.68,3.20280557]
[1744539533334,0.05783541,130.71,130.69,31.72768298]
[1744539533535,0.05783541,130.71,130.69,28.58]
[1744539534036,0.05783541,130.71,130.7,7.6532]
[1744539539545,0.05783541,130.71,130.7,10.79461259]
[1744539540150,0.05783541,130.71,130.7,10.79410879]
[1744539544758,0.05783541,130.71,130.7,10.79186608]
[1744539548552,0.05783541,130.71,130.69,7.6535]
[1744539552360,0.05783541,130.71,130.7,7.6532]
[1744539561667,0.05783541,130.71,130.69,7.6535]
[1744539561867,0.05783541,130.71,130.68,0.05512259]
[1744539562269,7.71063541,130.71,130.68,7.70912259]
[1744539562563,7.71063541,130.71,130.68,0.05512259]
[1744539562766,4.0949,130.7,130.68,0.05512259]
[1744539563266,4.0949,130.7,130.68,7.70932259]
[1744539563468,4.0949,130.7,130.68,0.05512259]
[1744539563667,4.0949,130.7,130.63,28.56]
[1744539563867,11.7485,130.7,130.67,7.6549]
[1744539564271,7.6545,130.68,130.65,7.6558]
[1744539564473,28.56,130.69,130.63,28.56]
[1744539564669,28.56,130.69,130.6,28.56]
[1744539564865,0.04956653,130.67,130.61,3.15018394]
[1744539565065,28.56,130.66,130.6,28.56]
[1744539565266,28.56,130.66,130.61,3.15129912]
[1744539565469,0.05213789,130.64,130.6,28.56]
[1744539565872,0.05213789,130.64,130.61,3.15068956]
[1744539566076,0.05213789,130.64,130.6,28.56]
[1744539566370,0.05213789,130.64,130.63,7.6572]
[1744539567974,0.05213789,130.64,130.62,7.6576]
[1744539568468,7.70903789,130.64,130.61,7.6584]
[1744539569373,11.76953789,130.64,130.61,7.6584]
[1744539569567,11.76953789,130.64,130.62,7.6578]
[1744539569765,4.11263789,130.64,130.62,7.6578]
[1744539571276,11.76933789,130.64,130.62,7.6578]
[1744539571477,4.11263789,130.64,130.63,7.6573]
[1744539572277,4.11263789,130.64,130.57,28.56]
[1744539572479,4.11263789,130.64,130.58,3.14440009]
[1744539572680,4.11263789,130.64,130.57,28.56]
[1744539572980,0.05213789,130.64,130.63,7.6573]
[1744539589587,28.56,130.7,130.63,28.56]
[1744539590292,28.56,130.7,130.68,7.6541]
[1744539590793,28.61038733,130.7,130.68,7.70623789]
[1744539591491,28.61038733,130.7,130.68,0.05213789]
[1744539592290,28.61038733,130.7,130.68,7.70653789]
[1744539592994,28.61038733,130.7,130.69,7.6538]
[1744539593593,28.61038733,130.7,130.68,7.70633789]
[1744539594393,28.61038733,130.7,130.69,7.6538]
[1744539599490,28.61038733,130.7,130.68,0.05213789]
[1744539599696,28.61038733,130.7,130.68,7.70623789]
[1744539600903,28.61038733,130.7,130.69,7.6538]
[1744539602806,28.61038733,130.7,130.68,7.70623789]
[1744539605608,7.6538,130.69,130.68,0.05213789]
[1744539605907,28.61038733,130.7,130.68,0.05213789]
[1744539606107,36.26398733,130.7,130.68,0.05213789]
[1744539607707,28.61038733,130.7,130.68,0.05213789]
[1744539608104,0.05038733,130.7,130.68,0.05213789]
[1744539608308,71.85025367,130.76,130.68,0.05213789]
[1744539608509,104.52525367,130.76,130.69,3.14822915]
[1744539608810,79.50085367,130.75,130.72,7.6516]
[1744539609009,71.85025367,130.75,130.67,28.54]
[1744539609209,71.85025367,130.75,130.68,3.14690615]
[1744539609405,71.85025367,130.75,130.73,7.6514]
[1744539609810,71.90853511,130.75,130.73,7.70294318]
[1744539611513,0.05828144,130.75,130.73,7.70294318]
[1744539611711,7.70858144,130.75,130.73,7.70294318]
[1744539612413,0.05828144,130.75,130.73,7.70294318]
[1744539614115,0.05828144,130.75,130.74,7.6509]
[1744539614915,28.54,130.8,130.77,7.6488]
[1744539615116,28.54,130.8,130.73,28.54]
[1744539615615,28.54,130.8,130.78,7.6482]
[1744539616115,28.5909816,130.8,130.78,7.70263598]
[1744539617017,36.2383816,130.8,130.78,0.05443598]
[1744539617217,28.5909816,130.8,130.78,0.05443598]
[1744539617715,28.5909816,130.8,130.78,7.70283598]
[1744539618217,36.2383816,130.8,130.78,0.05443598]
[1744539619018,7.6479,130.79,130.78,0.05443598]
[1744539619312,28.5909816,130.8,130.7,28.54]
[1744539619506,7.6502,130.76,130.7,28.54]
[1744539619707,1.9722,130.75,130.7,28.54]
[1744539619911,1.9722,130.75,130.67,634.64]
[1744539620109,7.6509,130.74,130.71,7.6522]
[1744539620306,0.0563745,130.72,130.7,0.05351449]
[1744539620920,0.0563745,130.72,130.71,7.6526]
[1744539630229,0.0563745,130.72,130.7,7.70651449]
[1744539630827,0.0563745,130.72,130.71,7.6526]
[1744539643243,0.0563745,130.72,130.7,7.70641449]
[1744539644737,7.6526,130.71,130.7,0.05351449]
[1744539653150,7.6544,130.68,130.65,28.52]
[1744539653344,28.54,130.7,130.65,28.52]
[1744539653541,28.54,130.7,130.66,7.6551]
[1744539653846,7.6545,130.68,130.66,7.6551]
[1744539654251,7.70501229,130.68,130.66,7.70795619]
[1744539655548,7.655,130.67,130.66,0.05285619]
[1744539655946,0.05051229,130.68,130.66,0.05285619]
[1744539656145,7.70531229,130.68,130.66,0.05285619]
[1744539656661,7.655,130.67,130.66,0.05285619]
[1744539657362,7.6565,130.65,130.59,28.54]
[1744539657660,28.54,130.67,130.6,3.14498352]
[1744539657861,28.54,130.67,130.6,7.6588]
[1744539658559,7.657,130.64,130.6,7.6588]
[1744539659058,7.6577,130.63,130.6,7.6588]
[1744539659860,28.54,130.64,130.56,28.54]
[1744539660061,4.0563,130.63,130.57,3.14342663]
[1744539660358,7.71152948,130.61,130.58,7.6602]
[1744539660861,0.05302948,130.61,130.59,28.52]
[1744539661257,0.05302948,130.61,130.6,7.6591]
[1744539666163,0.05302948,130.61,130.59,7.6595]
[1744539666558,0.05302948,130.61,130.56,28.54]
[1744539667263,0.05302948,130.61,130.58,7.6601]
[1744539667661,0.05302948,130.61,130.59,7.6596]
[1744539667862,0.05302948,130.61,130.56,28.54]
[1744539668255,0.05302948,130.61,130.6,7.6591]
[1744539684580,28.54,130.67,130.63,7.657]
[1744539684780,7.656,130.66,130.63,7.657]
[1744539685783,7.70696086,130.66,130.63,7.70549373]
[1744539685977,0.05096086,130.66,130.64,7.6564]
[1744539686183,0.05096086,130.66,130.63,0.04849373]
[1744539686482,7.70676086,130.66,130.63,7.70529373]
[1744539686782,0.05096086,130.66,130.63,0.04849373]
[1744539687579,7.6565,130.65,130.63,0.04849373]
[1744539690880,7.70676086,130.66,130.63,7.70549373]
[1744539691084,0.05096086,130.66,130.63,0.04849373]
[1744539691885,0.05096086,130.66,130.64,7.6564]
[1744539692386,0.05096086,130.66,130.65,7.6561]
[1744539712906,6.086e-05,130.66,130.65,7.6561]
[1744539713109,6.086e-05,130.66,130.65,36.1761]
[1744539713509,6.086e-05,130.66,130.65,7.6561]
[1744539722717,6.086e-05,130.66,130.65,10.81693595]
[1744539724818,6.086e-05,130.66,130.65,39.33693595]
[1744539725621,6.086e-05,130.66,130.65,39.33634102]
[1744539742028,6.086e-05,130.66,130.65,46.99634102]
[1744539744832,4.1786,130.75,130.74,7.6509]
[1744539745031,32.5636,130.79,130.72,28.52]
[1744539745333,32.5636,130.79,130.77,7.6488]
[1744539745527,32.5636,130.79,130.73,28.52]
[1744539746034,0.05638419,130.77,130.76,7.6497]
[1744539746233,0.05638419,130.77,130.75,0.05321222]
[1744539747034,0.05638419,130.77,130.73,28.52]
[1744539747332,7.70558419,130.77,130.74,7.6505]
[1744539747536,7.6492,130.77,130.7,28.52]
[1744539748029,0.05595432,130.75,130.72,0.05077812]
[1744539748332,0.05595432,130.75,130.64,28.5]
[1744539748529,28.5,130.76,130.68,7.6541]
[1744539748735,7.6527,130.71,130.68,4.4156]
[1744539749123,28.5,130.72,130.64,28.5]
[1744539749329,0.0499273,130.71,130.65,3.14605449]
[1744539749637,0.0499273,130.71,130.64,28.5]
[1744539749933,0.0499273,130.71,130.69,7.6533]
[1744539750333,0.0499273,130.71,130.7,7.6532]
[1744539768448,0.0499273,130.71,130.69,7.6535]
[1744539769149,0.0499273,130.71,130.7,7.6532]
[1744539769947,0.0499273,130.71,130.69,7.6535]
[1744539770549,0.0499273,130.71,130.64,28.5]
[1744539770751,0.0499273,130.71,130.7,7.6532]
[1744539786861,30.5056,130.75,130.74,7.6509]
[1744539787054,28.5,130.75,130.74,7.6509]
[1744539787961,71.90743234,130.76,130.75,7.6503]
[1744539788161,71.85025367,130.76,130.75,7.6503]
[1744539789665,107.63382532,130.77,130.76,7.6497]
[1744539789666,0.05034731,130.77,130.76,7.6497]
[1744539801877,0.05034731,130.77,130.73,0.0499273]
[1744539802074,28.48,130.76,130.73,0.0499273]
[1744539802272,30.62,130.76,130.69,7.6534]
[1744539802479,2.0344,130.75,130.65,28.48]
[1744539802672,2.0344,130.75,130.66,3.14903331]
[1744539802978,7.6525,130.72,130.65,28.48]
[1744539803172,28.48,130.73,130.66,3.15070844]
[1744539803370,0.04936102,130.71,130.65,28.48]
[1744539803676,0.04936102,130.71,130.66,3.15108172]
[1744539803975,0.04936102,130.71,130.65,28.48]
[1744539804165,7.70206102,130.71,130.69,7.6538]
[1744539804678,0.04936102,130.71,130.69,7.6538]
[1744539805479,7.70196102,130.71,130.69,7.6538]
[1744539806179,7.6532,130.7,130.65,28.48]
[1744539806680,7.654,130.69,130.66,7.6552]
[1744539806884,28.48,130.7,130.62,30.5727]
[1744539807077,30.5029,130.7,130.63,3.15521079]
[1744539807278,0.05083257,130.67,130.66,7.6552]
[1744539807682,0.05083257,130.67,130.62,30.5727]
[1744539808885,0.05083257,130.67,130.65,7.656]
[1744539810984,0.05083257,130.67,130.66,7.6555]
[1744539811591,0.05083257,130.67,130.65,7.6559]
[1744539812088,0.05083257,130.67,130.66,7.6555]
[1744539812389,0.05083257,130.67,130.62,30.5727]
[1744539812791,0.05083257,130.67,130.65,7.6558]
[1744539813589,0.05083257,130.67,130.66,7.6555]
[1744539816092,28.48,130.73,130.65,28.48]
[1744539816295,36.132,130.73,130.65,28.48]
[1744539816593,28.48,130.73,130.69,7.6536]
[1744539817088,7.6522,130.72,130.7,0.05083257]
[1744539817294,7.70260938,130.72,130.7,0.05083257]
[1744539817692,7.70260938,130.72,130.7,7.70393257]
[1744539817894,0.05040938,130.72,130.7,0.05083257]
[1744539818396,0.05040938,130.72,130.71,7.6526]
[1744539819694,28.5,130.77,130.7,0.05083257]
[1744539820095,36.1494,130.77,130.71,28.5]
[1744539820798,28.5,130.77,130.71,28.5]
[1744539820996,0.05033833,130.75,130.73,0.05345242]
[1744539821198,38.1088,130.8,130.77,7.6488]
[1744539821593,38.16687096,130.8,130.77,7.69707302]
[1744539822096,36.20567096,130.8,130.77,7.69707302]
[1744539822899,28.55807096,130.8,130.78,7.6485]
[1744539823295,28.55807096,130.8,130.77,0.04827302]
[1744539823596,0.05807096,130.8,130.79,7.6479]
[1744539824297,0.05807096,130.8,130.78,7.6483]
[1744539824498,0.05807096,130.8,130.77,0.04827302]
[1744539825000,0.05807096,130.8,130.78,7.6481]
[1744539825599,0.05807096,130.8,130.79,7.6479]
[1744539826302,0.05807096,130.8,130.77,0.04827302]
[1744539826799,28.53807096,130.8,130.77,0.04827302]
[1744539826996,7.6479,130.79,130.77,0.04827302]
[1744539827598,28.53807096,130.8,130.77,0.04827302]
[1744539827799,7.6485,130.78,130.77,0.04827302]
[1744539834609,4.1,130.79,130.77,0.04827302]
[1744539835310,11.7482,130.79,130.77,0.04827302]
[1744539835710,11.7482,130.79,130.77,7.69727302]
[1744539835906,28.53807096,130.8,130.77,0.04827302]
[1744539836107,0.05807096,130.8,130.77,0.04827302]
[1744539836610,0.05807096,130.8,130.79,7.6479]
[1744539842415,7.6453,130.84,130.82,7.6461]
[1744539843515,7.69866383,130.84,130.82,7.70093608]
[1744539844014,7.69866383,130.84,130.82,0.05483608]
[1744539845315,7.6456,130.83,130.82,0.05483608]
[1744539845525,28.46,130.83,130.79,7.6476]
[1744539845917,28.46,130.83,130.8,7.6471]
[1744539846420,36.1061,130.83,130.8,7.6471]
[1744539846618,36.16207786,130.83,130.81,7.6467]
[1744539846919,28.51597786,130.83,130.81,7.6467]
[1744539848322,36.16167786,130.83,130.81,7.6467]
[1744539849323,36.16167786,130.83,130.8,7.70471025]
[1744539849625,36.16167786,130.83,130.8,0.05761025]
[1744539850624,36.16167786,130.83,130.8,7.70471025]
[1744539850826,7.6462,130.82,130.8,0.05761025]
[1744539851722,36.16177786,130.83,130.8,0.05761025]
[1744539851925,28.51597786,130.83,130.8,0.05761025]
[1744539852427,36.16187786,130.83,130.8,7.70481025]
[1744539853828,28.51597786,130.83,130.81,7.6466]
[1744539857028,28.51597786,130.83,130.82,7.6462]
[1744539859430,28.51597786,130.83,130.81,7.6464]
[1744539859831,28.51597786,130.83,130.8,0.05761025]
[1744539860131,28.51597786,130.83,130.82,7.6462]
[1744539861031,0.05597786,130.83,130.81,7.6466]
[1744539863634,7.70157786,130.83,130.81,7.6466]
[1744539865034,7.70157786,130.83,130.8,7.70471025]
[1744539865238,7.70157786,130.83,130.8,0.05761025]
[1744539866440,7.70157786,130.83,130.81,7.6467]
[1744539867241,59.14597786,130.83,130.66,28.46]
[1744539867436,2.0432,130.82,130.67,3.15965224]
[1744539867636,605.64,130.81,130.68,3.15965224]
[1744539867836,7.6508,130.75,130.69,3.15965224]
[1744539868037,7.6508,130.75,130.7,3.15965224]
[1744539868236,0.05375596,130.74,130.71,0.04686658]
[1744539868642,0.05375596,130.74,130.71,7.69946658]
[1744539868841,0.05375596,130.74,130.71,0.04686658]
[1744539870938,0.05375596,130.74,130.71,7.69916658]
[1744539871441,0.05375596,130.74,130.72,7.6519]
[1744539872748,0.05375596,130.74,130.73,7.6514]
[1744539873442,607.6503,130.81,130.75,7.6499]
[1744539873643,28.44,130.8,130.72,28.44]
[1744539874546,0.0485492,130.77,130.75,7.70129381]
[1744539874745,0.0485492,130.77,130.75,0.05139381]
[1744539874944,28.44,130.8,130.75,0.05139381]
[1744539875348,71.85025367,130.81,130.75,28.49139381]
[1744539875847,71.85025367,130.81,130.79,7.6476]
[1744539876249,71.90278192,130.81,130.75,28.44]
[1744539876449,71.90278192,130.81,130.8,7.6474]
[1744539876647,0.05252825,130.81,130.77,0.05629641]
[1744539876949,0.05252825,130.81,130.79,7.6476]
[1744539877345,0.05252825,130.81,130.77,0.05629641]
[1744539877745,0.05252825,130.81,130.79,7.6476]
[1744539877947,0.05252825,130.81,130.77,0.05629641]
[1744539880048,7.69932825,130.81,130.78,7.6482]
[1744539881851,7.69932825,130.81,130.77,7.70509641]
[1744539882052,0.05252825,130.81,130.77,0.05629641]
[1744539882255,28.49252825,130.81,130.77,0.05629641]
[1744539882554,7.6475,130.8,130.77,0.05629641]
[1744539884150,7.6475,130.8,130.77,7.70529641]